fUSD/lending_fUSD_20250304
["ID","MTS","AMOUNT","RATE_DAILY","PERIOD"]
[355320753,1741065040556,-500.0,0.0001269,2]
[355320756,1741065040567,-917.17,0.0001269,2]
[355320757,1741065040578,-500.0,0.0001269,2]
[355320759,1741065040588,-1147.0,0.0001269,2]
[355320761,1741065040599,-940.23,0.0001269,2]
[355320763,1741065040609,-510.82197782,0.0001269,2]
[355320765,1741065040620,-1400.36,0.0001269,2]
[355320767,1741065040629,-500.0,0.0001269,2]
[355320769,1741065040640,-500.0,0.0001269,2]
[355320771,1741065040649,-500.0,0.0001269,2]
[355320773,1741065040660,-500.0,0.0001269,2]
[355320775,1741065040671,-500.0,0.0001269,2]
[355320777,1741065040682,-503.91338861,0.0001269,2]
[355320779,1741065040694,-500.0,0.0001269,2]
[355320781,1741065040704,-500.0,0.0001269,2]
[355320783,1741065040714,-500.0,0.0001269,2]
[355320786,1741065040729,-500.0,0.0001269,2]
[355320788,1741065040742,-500.0,0.0001269,2]
[355320790,1741065040753,-500.0,0.0001269,2]
[355320792,1741065040771,-1594.38,0.0001269,2]
[355320794,1741065040782,-500.0,0.0001269,2]
[355320796,1741065040793,-1007.12,0.0001269,2]
[355320798,1741065040804,-500.0,0.0001269,2]
[355320800,1741065040815,-1782.3,0.0001269,2]
[355320802,1741065040826,-512.42,0.0001269,2]
[355320804,1741065040836,-663.5,0.0001269,2]
[355320807,1741065040847,-500.0,0.0001269,2]
[355320809,1741065040857,-500.0,0.0001269,2]
[355320811,1741065040867,-1867.29,0.0001269,2]
[355320813,1741065040877,-1381.28,0.0001269,2]
[355320815,1741065040887,-1300.9,0.0001269,2]
[355320817,1741065040898,-500.0,0.0001269,2]
[355320819,1741065040908,-702.31,0.0001269,2]
[355320822,1741065040919,-981.66,0.0001269,2]
[355320824,1741065040931,-500.0,0.0001269,2]
[355320826,1741065040941,-524.25238402,0.0001269,2]
[355320828,1741065040952,-500.0,0.0001269,2]
[355320830,1741065040962,-502.7203178,0.0001269,2]
[355320832,1741065040973,-1526.56,0.0001269,2]
[355320834,1741065040984,-531.23514042,0.0001269,2]
[355320836,1741065040995,-767.26,0.0001269,2]
[355320838,1741065041010,-2406.39,0.0001269,2]
[355320840,1741065041021,-500.0,0.0001269,2]
[355320842,1741065041031,-928.935834,0.0001269,2]
[355320844,1741065041043,-584.57,0.0001269,2]
[355320846,1741065041053,-707.71,0.0001269,2]
[355320848,1741065041063,-1187.91,0.0001269,2]
[355320850,1741065041073,-1631.51,0.0001269,2]
[355320852,1741065041084,-3484.62,0.0001269,2]
[355320854,1741065041094,-1566.317868,0.0001269,2]
[355320856,1741065041105,-376.19039466,0.0001269,2]
[355320858,1741065041115,-500.0,0.0001269,2]
[355320860,1741065041126,-430.66691838,0.0001269,2]
[355320862,1741065041140,-83.86099087,0.0001269,2]
[355320865,1741065041151,-1519.77,0.0001269,2]
[355320867,1741065041161,-165.05182,0.0001269,2]
[355320869,1741065041171,-2658.24,0.0001269,2]
[355320871,1741065041180,-525.25043977,0.0001269,2]
[355320873,1741065041190,-160.018307,0.0001269,2]
[355320875,1741065041200,-443.80844236,0.0001269,2]
[355320892,1741065041363,-153.55155764,0.0001269,2]
[355320894,1741065041373,-500.0,0.0001269,2]
[355320896,1741065041384,-1436.85741894,0.0001269,2]
[355320898,1741065041395,-253.14127131,0.0001269,2]
[355320900,1741065041407,-410.19130975,0.0001269,2]
[355320902,1741065041417,-1691.71349992,0.0001269,2]
[355320904,1741065041428,-372.50946649,0.0001269,2]
[355320906,1741065041440,-59.23703359,0.0001269,2]
[355320907,1741065041450,-302.92948163,0.0001269,2]
[355320908,1741065041578,-1161.53051837,0.0001269,2]
[355320909,1741065041588,-626.51626135,0.0001269,2]
[355320910,1741065041597,-1323.07,0.0001269,2]
[355320911,1741065041611,-500.0,0.0001269,2]
[355320925,1741065041828,-500.0,0.0001269,2]
[355320927,1741065041839,-500.0,0.0001269,2]
[355320930,1741065041848,-2447.07,0.0001269,2]
[355320932,1741065041859,-500.0,0.0001269,2]
[355320934,1741065041868,-2094.14,0.0001269,2]
[355320936,1741065041878,-973.01,0.0001269,2]
[355320938,1741065041887,-1623.48,0.0001269,2]
[355320940,1741065041897,-4417.37,0.0001269,2]
[355320942,1741065041906,-1529.54,0.0001269,2]
[355320944,1741065041915,-1321.63377274,0.0001269,2]
[355320946,1741065041927,-289.48622726,0.0001269,2]
[355320948,1741065041937,-3411.63,0.0001269,2]
[355320950,1741065041946,-124.59384721,0.0001269,2]
[355320952,1741065041957,-275.87722916,0.0001269,2]
[355320954,1741065041970,-1059.94892363,0.0001269,2]
[355320956,1741065041980,-93.34488356,0.0001269,2]
[355320958,1741065041993,-1388.38511644,0.0001269,2]
[355320960,1741065042004,-2420.72,0.0001269,2]
[355320963,1741065042015,-619.50629959,0.0001269,2]
[355320965,1741065042027,-2322.65370041,0.0001269,2]
[355320967,1741065042036,-616.06771027,0.0001269,2]
[355320969,1741065042045,-1326.66,0.0001269,2]
[355320971,1741065042054,-500.0,0.0001269,2]
[355320973,1741065042064,-500.0,0.0001269,2]
[355320975,1741065042074,-626.8,0.0001269,2]
[355320977,1741065042082,-5513.7,0.0001269,2]
[355320979,1741065042091,-500.0,0.0001269,2]
[355320980,1741065042100,-1099.02,0.0001269,2]
[355320982,1741065042110,-2269.69,0.0001269,2]
[355320984,1741065042119,-500.0,0.0001269,2]
[355320986,1741065042128,-649.41,0.0001269,2]
[355320988,1741065042138,-2437.41,0.0001269,2]
[355320990,1741065042147,-500.0,0.0001269,2]
[355320992,1741065042157,-500.0,0.0001269,2]
[355320994,1741065042166,-500.0,0.0001269,2]
[355320996,1741065042175,-500.0,0.0001269,2]
[355320998,1741065042185,-2647.55,0.0001269,2]
[355321000,1741065042195,-642.14,0.0001269,2]
[355321002,1741065042205,-2093.23,0.0001269,2]
[355321004,1741065042214,-4154.56,0.0001269,2]
[355321006,1741065042224,-500.0,0.0001269,2]
[355321008,1741065042233,-1230.39,0.0001269,2]
[355321010,1741065042243,-500.0,0.0001269,2]
[355321012,1741065042252,-1343.82,0.0001269,2]
[355321014,1741065042266,-679.17,0.0001269,2]
[355321016,1741065042275,-500.0,0.0001269,2]
[355321018,1741065042285,-1108.87,0.0001269,2]
[355321020,1741065042294,-500.92124153,0.0001269,2]
[355321022,1741065042303,-2775.13,0.0001269,2]
[355321024,1741065042312,-2524.21,0.0001269,2]
[355321026,1741065042321,-670.79,0.0001269,2]
[355321028,1741065042330,-500.0,0.0001269,2]
[355321030,1741065042340,-500.0,0.0001269,2]
[355321032,1741065042349,-1863.49,0.0001269,2]
[355321034,1741065042359,-500.0,0.0001269,2]
[355321036,1741065042368,-500.0,0.0001269,2]
[355321038,1741065042377,-500.0,0.0001269,2]
[355321040,1741065042386,-162.345232,0.0001269,2]
[355321042,1741065042395,-1385.70903716,0.0001269,2]
[355321044,1741065042407,-201.12096284,0.0001269,2]
[355321046,1741065042416,-500.0,0.0001269,2]
[355321048,1741065042425,-500.0,0.0001269,2]
[355321050,1741065042435,-2905.03,0.0001269,2]
[355321052,1741065042444,-2532.77,0.0001269,2]
[355321054,1741065042453,-500.0,0.0001269,2]
[355321056,1741065042463,-590.17,0.0001269,2]
[355321058,1741065042472,-500.0,0.0001269,2]
[355321060,1741065042481,-500.0,0.0001269,2]
[355321062,1741065042491,-161.078586,0.0001269,2]
[355321064,1741065042500,-1876.63,0.0001269,2]
[355321066,1741065042513,-1272.38,0.0001269,2]
[355321068,1741065042523,-500.0,0.0001269,2]
[355321070,1741065042537,-522.59,0.0001269,2]
[355321072,1741065042546,-1994.69,0.0001269,2]
[355321074,1741065042555,-1088.01,0.0001269,2]
[355321076,1741065042565,-1886.81,0.0001269,2]
[355321078,1741065042574,-2768.23,0.0001269,2]
[355321080,1741065042584,-2261.05,0.0001269,2]
[355321082,1741065042594,-500.0,0.0001269,2]
[355321084,1741065042603,-1726.85,0.0001269,2]
[355321086,1741065042613,-1689.55,0.0001269,2]
[355321088,1741065042623,-609.74,0.0001269,2]
[355321090,1741065042633,-585.27,0.0001269,2]
[355321092,1741065042642,-796.02,0.0001269,2]
[355321094,1741065042652,-4374.0,0.0001269,2]
[355321096,1741065042661,-500.0,0.0001269,2]
[355321098,1741065042670,-1101.18,0.0001269,2]
[355321100,1741065042679,-500.0,0.0001269,2]
[355321102,1741065042689,-250000.0,0.00012691,2]
[355321104,1741065042698,-999.99,0.00012691,2]
[355321106,1741065042708,-500.0,0.00012692,2]
[355321108,1741065042717,-1263.61,0.00012692,2]
[355321110,1741065042727,-500.0,0.00012692,2]
[355321112,1741065042736,-500.0,0.00012692,2]
[355321114,1741065042745,-1102.85,0.00012692,2]
[355321116,1741065042757,-505.41885902,0.00012692,2]
[355321118,1741065042766,-259.70631361,0.00012692,2]
[355321120,1741065042775,-500.0,0.00012692,2]
[355321122,1741065042785,-1403.28,0.00012692,2]
[355321124,1741065042797,-500.0,0.00012692,2]
[355321126,1741065042807,-500.0,0.00012692,2]
[355321128,1741065042817,-500.0,0.00012692,2]
[355321130,1741065042826,-500.0,0.00012692,2]
[355321132,1741065042836,-500.0,0.00012692,2]
[355321134,1741065042846,-502.6129454,0.00012692,2]
[355321136,1741065042855,-500.0,0.00012692,2]
[355321138,1741065042864,-1416.46,0.00012692,2]
[355321140,1741065042874,-761.86,0.00012692,2]
[355321142,1741065042883,-922.31,0.00012692,2]
[355321144,1741065042893,-500.0,0.00012692,2]
[355321146,1741065042903,-500.0,0.00012692,2]
[355321148,1741065042913,-500.0,0.00012692,2]
[355321150,1741065042923,-500.0,0.00012692,2]
[355321152,1741065042932,-500.0,0.00012692,2]
[355321153,1741065042942,-510.64715016,0.00012692,2]
[355321155,1741065042952,-501.53282014,0.00012692,2]
[355321158,1741065042961,-500.0,0.00012692,2]
[355321161,1741065042971,-502.95621551,0.00012692,2]
[355321164,1741065042980,-504.53705752,0.00012692,2]
[355321167,1741065042990,-500.0,0.00012692,2]
[355321170,1741065042999,-500.0,0.00012692,2]
[355321173,1741065043009,-500.0,0.00012692,2]
[355321176,1741065043019,-1765.03,0.00012692,2]
[355321179,1741065043028,-503.74859689,0.00012692,2]
[355321182,1741065043038,-500.86220362,0.00012692,2]
[355321185,1741065043047,-158.663893,0.00012692,2]
[355321190,1741065043056,-503.04603488,0.00012692,2]
[355321194,1741065043066,-503.32968506,0.00012692,2]
[355321197,1741065043077,-500.0,0.00012692,2]
[355321200,1741065043086,-500.0,0.00012692,2]
[355321202,1741065043096,-503.84442259,0.00012692,2]
[355321204,1741065043105,-502.3094284,0.00012692,2]
[355321206,1741065043115,-500.0,0.00012692,2]
[355321208,1741065043124,-514.47274831,0.00012692,2]
[355321210,1741065043134,-500.0,0.00012692,2]
[355321212,1741065043143,-503.01668844,0.00012692,2]
[355321214,1741065043152,-500.0,0.00012692,2]
[355321216,1741065043162,-503.52577391,0.00012692,2]
[355321218,1741065043171,-500.0,0.00012692,2]
[355321220,1741065043181,-500.0,0.00012692,2]
[355321222,1741065043190,-503.17811185,0.00012692,2]
[355321224,1741065043199,-500.6789825,0.00012692,2]
[355321226,1741065043208,-500.0,0.00012692,2]
[355321228,1741065043217,-500.0,0.00012692,2]
[355321230,1741065043227,-500.0,0.00012692,2]
[355321232,1741065043236,-500.0,0.00012692,2]
[355321234,1741065043246,-500.0,0.00012692,2]
[355321236,1741065043256,-500.0,0.00012692,2]
[355321238,1741065043265,-501.3874563,0.00012692,2]
[355321240,1741065043274,-1279.11,0.00012692,2]
[355321242,1741065043283,-500.0,0.00012692,2]
[355321244,1741065043293,-509.49242135,0.00012692,2]
[355321246,1741065043302,-520.29,0.00012692,2]
[355321248,1741065043312,-500.0,0.00012692,2]
[355321250,1741065043321,-1100.4,0.00012692,2]
[355321252,1741065043330,-509.03312681,0.00012692,2]
[355321253,1741065043339,-635.72,0.00012692,2]
[355321255,1741065043349,-500.0,0.00012692,2]
[355321257,1741065043358,-500.0,0.00012692,2]
[355321259,1741065043367,-500.0,0.00012692,2]
[355321261,1741065043378,-500.0,0.00012692,2]
[355321263,1741065043387,-502.47494452,0.00012692,2]
[355321265,1741065043396,-1483.51,0.00012692,2]
[355321267,1741065043406,-877.25,0.00012692,2]
[355321269,1741065043416,-500.0,0.00012692,2]
[355321271,1741065043425,-502.59084184,0.00012692,2]
[355321273,1741065043434,-503.09521003,0.00012692,2]
[355321275,1741065043444,-500.0,0.00012692,2]
[355321277,1741065043453,-500.0,0.00012692,2]
[355321279,1741065043463,-500.0,0.00012692,2]
[355321281,1741065043472,-506.18136276,0.00012692,2]
[355321283,1741065043482,-1357.57,0.00012692,2]
[355321285,1741065043491,-500.0,0.00012692,2]
[355321287,1741065043501,-502.68967529,0.00012692,2]
[355321289,1741065043514,-504.84205732,0.00012692,2]
[355321292,1741065043525,-542.5754285,0.00012692,2]
[355321294,1741065043535,-500.0,0.00012692,2]
[355321296,1741065043550,-625.86785159,0.00012692,2]
[355321298,1741065043559,-500.0,0.00012692,2]
[355321300,1741065043569,-500.0,0.00012692,2]
[355321302,1741065043578,-500.0,0.00012692,2]
[355321305,1741065043589,-506.65577828,0.00012692,2]
[355321307,1741065043598,-500.83032471,0.00012692,2]
[355321309,1741065043607,-500.0,0.00012692,2]
[355321311,1741065043617,-1916.93,0.00012692,2]
[355321313,1741065043627,-505.81263843,0.00012692,2]
[355321315,1741065043638,-500.0,0.00012692,2]
[355321317,1741065043647,-500.0,0.00012692,2]
[355321319,1741065043657,-506.01426394,0.00012692,2]
[355321321,1741065043667,-505.04931842,0.00012692,2]
[355321323,1741065043678,-503.74565982,0.00012692,2]
[355321325,1741065043687,-500.0,0.00012692,2]
[355321328,1741065043697,-500.0,0.00012692,2]
[355321331,1741065043707,-500.0,0.00012692,2]
[355321333,1741065043716,-501.43407474,0.00012692,2]
[355321335,1741065043725,-500.0,0.00012692,2]
[355321337,1741065043735,-500.0,0.00012692,2]
[355321338,1741065043744,-1070.99,0.00012692,2]
[355321340,1741065043756,-507.56385161,0.00012692,2]
[355321342,1741065043766,-509.91170081,0.00012692,2]
[355321345,1741065043776,-500.0,0.00012692,2]
[355321346,1741065043786,-508.44236961,0.00012692,2]
[355321349,1741065043796,-500.0,0.00012692,2]
[355321350,1741065043806,-500.0,0.00012692,2]
[355321353,1741065043816,-500.0,0.00012692,2]
[355321354,1741065043826,-500.0,0.00012692,2]
[355321356,1741065043836,-500.0,0.00012692,2]
[355321358,1741065043847,-482.49560516,0.00012692,2]
[355321360,1741065043856,-500.43134047,0.00012692,2]
[355321363,1741065043866,-500.0,0.00012692,2]
[355321364,1741065043876,-500.0,0.00012692,2]
[355321367,1741065043887,-505.58734366,0.00012692,2]
[355321369,1741065043897,-639.65,0.00012692,2]
[355321371,1741065043907,-500.0,0.00012692,2]
[355321373,1741065043916,-500.0,0.00012692,2]
[355321375,1741065043926,-501.63876363,0.00012692,2]
[355321393,1741065044101,-1153.48,0.00012692,2]
[355321395,1741065044111,-500.0,0.00012692,2]
[355321397,1741065044120,-500.0,0.00012692,2]
[355321399,1741065044130,-500.0,0.00012692,2]
[355321401,1741065044139,-752.21,0.00012692,2]
[355321403,1741065044149,-505.19916584,0.00012692,2]
[355321405,1741065044158,-500.0,0.00012692,2]
[355321407,1741065044168,-504.8209581,0.00012692,2]
[355321409,1741065044177,-509.1372711,0.00012692,2]
[355321411,1741065044186,-504.00395732,0.00012692,2]
[355321413,1741065044195,-520.63,0.00012692,2]
[355321415,1741065044204,-502.10525125,0.00012692,2]
[355321417,1741065044213,-500.0,0.00012692,2]
[355321419,1741065044222,-500.0,0.00012692,2]
[355321421,1741065044231,-500.0,0.00012692,2]
[355321423,1741065044240,-500.0,0.00012692,2]
[355321425,1741065044250,-503.53570716,0.00012692,2]
[355321427,1741065044262,-500.0,0.00012692,2]
[355321429,1741065044271,-585.16213734,0.00012692,2]
[355321431,1741065044279,-506.81632776,0.00012692,2]
[355321433,1741065044289,-500.0,0.00012692,2]
[355321435,1741065044299,-500.0,0.00012692,2]
[355321437,1741065044308,-501.15343433,0.00012692,2]
[355321439,1741065044317,-500.0,0.00012692,2]
[355321441,1741065044327,-504.05327748,0.00012692,2]
[355321443,1741065044338,-507.25751015,0.00012692,2]
[355321445,1741065044347,-508.00849289,0.00012692,2]
[355321447,1741065044356,-500.0,0.00012692,2]
[355321449,1741065044366,-500.0,0.00012692,2]
[355321451,1741065044375,-500.0,0.00012692,2]
[355321453,1741065044384,-500.0,0.00012692,2]
[355321455,1741065044394,-500.0,0.00012692,2]
[355321457,1741065044403,-341.26919093,0.00012692,2]
[355321459,1741065044412,-500.0,0.00012692,2]
[355321461,1741065044421,-500.0,0.00012692,2]
[355321463,1741065044431,-500.0,0.00012692,2]
[355321465,1741065044440,-500.0,0.00012692,2]
[355321467,1741065044449,-504.00599878,0.00012692,2]
[355321469,1741065044458,-854.9,0.00012692,2]
[355321471,1741065044467,-500.70318857,0.00012692,2]
[355321473,1741065044477,-500.0,0.00012692,2]
[355321475,1741065044486,-500.0,0.00012692,2]
[355321477,1741065044495,-560.68,0.00012692,2]
[355321479,1741065044505,-500.0,0.00012692,2]
[355321482,1741065044515,-500.0,0.00012692,2]
[355321483,1741065044526,-500.0,0.00012692,2]
[355321485,1741065044538,-648.38,0.00012692,2]
[355321487,1741065044547,-500.0,0.00012692,2]
[355321489,1741065044556,-500.0,0.00012692,2]
[355321491,1741065044567,-728.75,0.00012692,2]
[355321493,1741065044576,-1167.53,0.00012692,2]
[355321495,1741065044585,-501.62888038,0.00012692,2]
[355321497,1741065044595,-500.0,0.00012692,2]
[355321499,1741065044604,-500.0,0.00012692,2]
[355321501,1741065044613,-500.0,0.00012692,2]
[355321503,1741065044623,-500.0,0.00012692,2]
[355321505,1741065044635,-664.17,0.00012692,2]
[355321507,1741065044644,-504.04298105,0.00012692,2]
[355321509,1741065044654,-500.0,0.00012692,2]
[355321511,1741065044663,-974.57,0.00012692,2]
[355321513,1741065044673,-1263.72,0.00012692,2]
[355321515,1741065044683,-503.83787909,0.00012692,2]
[355321517,1741065044692,-521.7049488,0.00012692,2]
[355321519,1741065044701,-500.0,0.00012692,2]
[355321521,1741065044711,-506.75318378,0.00012692,2]
[355321523,1741065044720,-500.0,0.00012692,2]
[355321525,1741065044729,-503.61413872,0.00012692,2]
[355321527,1741065044738,-691.37,0.00012692,2]
[355321529,1741065044748,-500.0,0.00012692,2]
[355321531,1741065044758,-500.0,0.00012692,2]
[355321533,1741065044767,-723.5,0.00012692,2]
[355321535,1741065044777,-857.27,0.00012692,2]
[355321537,1741065044786,-693.3,0.00012692,2]
[355321539,1741065044797,-500.0,0.00012692,2]
[355321542,1741065044807,-500.0,0.00012692,2]
[355321544,1741065044816,-771.88,0.00012692,2]
[355321545,1741065044826,-503.82381044,0.00012692,2]
[355321548,1741065044836,-500.0,0.00012692,2]
[355321549,1741065044845,-500.0,0.00012692,2]
[355321551,1741065044855,-513.56485324,0.00012692,2]
[355321553,1741065044864,-500.0,0.00012692,2]
[355321555,1741065044874,-500.0,0.00012692,2]
[355321557,1741065044883,-500.0,0.00012692,2]
[355321559,1741065044894,-500.0,0.00012692,2]
[355321561,1741065044903,-500.0,0.00012692,2]
[355321563,1741065044912,-500.0,0.00012692,2]
[355321565,1741065044922,-500.0,0.00012692,2]
[355321567,1741065044931,-1152.45,0.00012692,2]
[355321569,1741065044940,-312.26082898,0.00012692,2]
[355321571,1741065044950,-500.0,0.00012692,2]
[355321573,1741065044959,-503.91672251,0.00012692,2]
[355321575,1741065044968,-500.0,0.00012692,2]
[355321577,1741065044978,-506.48857489,0.00012692,2]
[355321579,1741065044987,-500.0,0.00012692,2]
[355321581,1741065044996,-507.33769087,0.00012692,2]
[355321583,1741065045006,-500.0,0.00012692,2]
[355321585,1741065045017,-511.09890002,0.00012692,2]
[355321587,1741065045027,-500.0,0.00012692,2]
[355321589,1741065045036,-500.0,0.00012692,2]
[355321591,1741065045046,-934.9,0.00012692,2]
[355321593,1741065045055,-500.0,0.00012692,2]
[355321595,1741065045064,-510.85605239,0.00012692,2]
[355321597,1741065045074,-500.0,0.00012692,2]
[355321599,1741065045083,-500.0,0.00012692,2]
[355321601,1741065045092,-678.15,0.00012692,2]
[355321603,1741065045104,-504.29392721,0.00012692,2]
[355321604,1741065045113,-500.0,0.00012692,2]
[355321606,1741065045122,-505.67567215,0.00012692,2]
[355321608,1741065045132,-209.69160729,0.00012692,2]
[355321610,1741065045141,-500.0,0.00012692,2]
[355321612,1741065045150,-561.83,0.00012692,2]
[355321614,1741065045160,-500.0,0.00012692,2]
[355321616,1741065045169,-500.0,0.00012692,2]
[355321618,1741065045179,-500.0,0.00012692,2]
[355321620,1741065045188,-500.0,0.00012692,2]
[355321622,1741065045197,-500.0,0.00012692,2]
[355321624,1741065045207,-500.0,0.00012692,2]
[355321626,1741065045216,-794.56,0.00012692,2]
[355321628,1741065045225,-500.0,0.00012692,2]
[355321630,1741065045234,-500.0,0.00012692,2]
[355321632,1741065045244,-500.0,0.00012692,2]
[355321634,1741065045253,-500.0,0.00012692,2]
[355321637,1741065045269,-510.15590875,0.00012692,2]
[355321639,1741065045279,-500.0,0.00012692,2]
[355321641,1741065045288,-1652.5,0.00012692,2]
[355321643,1741065045298,-500.0,0.00012692,2]
[355321645,1741065045307,-500.0,0.00012692,2]
[355321647,1741065045316,-500.0,0.00012692,2]
[355321649,1741065045325,-733.79,0.00012692,2]
[355321651,1741065045334,-500.0,0.00012692,2]
[355321653,1741065045343,-500.0,0.00012692,2]
[355321655,1741065045353,-503.76181721,0.00012692,2]
[355321657,1741065045362,-501.71967669,0.00012692,2]
[355321659,1741065045371,-500.0,0.00012692,2]
[355321660,1741065045380,-1013.87,0.00012692,2]
[355321663,1741065045389,-500.0,0.00012692,2]
[355321665,1741065045402,-500.0,0.00012692,2]
[355321667,1741065045411,-500.0,0.00012692,2]
[355321669,1741065045420,-500.0,0.00012692,2]
[355321671,1741065045429,-500.0,0.00012692,2]
[355321673,1741065045439,-500.0,0.00012692,2]
[355321675,1741065045448,-500.0,0.00012692,2]
[355321677,1741065045457,-500.0,0.00012692,2]
[355321679,1741065045466,-500.0,0.00012692,2]
[355321681,1741065045476,-500.0,0.00012692,2]
[355321683,1741065045485,-500.0,0.00012692,2]
[355321685,1741065045495,-500.0,0.00012692,2]
[355321687,1741065045504,-482.23068418,0.00012692,2]
[355321689,1741065045516,-500.0,0.00012692,2]
[355321691,1741065045528,-500.0,0.00012692,2]
[355321693,1741065045539,-855.35,0.00012692,2]
[355321695,1741065045552,-1440.4,0.00012692,2]
[355321697,1741065045562,-500.0,0.00012692,2]
[355321699,1741065045571,-512.27,0.00012692,2]
[355321701,1741065045582,-507.59702216,0.00012692,2]
[355321703,1741065045591,-1751.26,0.00012692,2]
[355321705,1741065045600,-505.39992096,0.00012692,2]
[355321707,1741065045610,-500.0,0.00012692,2]
[355321709,1741065045624,-500.0,0.00012692,2]
[355321711,1741065045633,-500.0,0.00012692,2]
[355321713,1741065045643,-604.44,0.00012692,2]
[355321715,1741065045652,-500.0,0.00012692,2]
[355321716,1741065045661,-500.0,0.00012692,2]
[355321718,1741065045671,-508.87875165,0.00012692,2]
[355321720,1741065045680,-1342.02,0.00012692,2]
[355321722,1741065045689,-500.0,0.00012692,2]
[355321724,1741065045699,-500.0,0.00012692,2]
[355321727,1741065045708,-500.0,0.00012692,2]
[355321728,1741065045717,-500.0,0.00012692,2]
[355321729,1741065045727,-500.0,0.00012692,2]
[355321730,1741065045735,-500.0,0.00012692,2]
[355321731,1741065045745,-1532.9,0.00012692,2]
[355321732,1741065045755,-500.0,0.00012692,2]
[355321733,1741065045767,-500.0,0.00012692,2]
[355321734,1741065045776,-500.0,0.00012692,2]
[355321735,1741065045786,-1329.83,0.00012692,2]
[355321736,1741065045795,-500.0,0.00012692,2]
[355321737,1741065045804,-500.0,0.00012692,2]
[355321738,1741065045814,-500.0,0.00012692,2]
[355321739,1741065045823,-500.0,0.00012692,2]
[355321741,1741065045832,-500.0,0.00012692,2]
[355321743,1741065045842,-500.0,0.00012692,2]
[355321745,1741065045851,-500.0,0.00012692,2]
[355321747,1741065045869,-635.87,0.00012692,2]
[355321748,1741065045878,-500.0,0.00012692,2]
[355321750,1741065045888,-1237.48,0.00012692,2]
[355321751,1741065045897,-631.27,0.00012692,2]
[355321752,1741065045907,-500.0,0.00012692,2]
[355321753,1741065045916,-575.76,0.00012692,2]
[355321754,1741065045926,-500.0,0.00012692,2]
[355321756,1741065045936,-721.37,0.00012692,2]
[355321758,1741065045946,-789.43,0.00012692,2]
[355321760,1741065045955,-500.0,0.00012692,2]
[355321762,1741065045964,-500.0,0.00012692,2]
[355321764,1741065045973,-500.0,0.00012692,2]
[355321766,1741065045983,-756.89,0.00012692,2]
[355321768,1741065045992,-500.0,0.00012692,2]
[355321770,1741065046001,-500.0,0.00012692,2]
[355321772,1741065046012,-500.0,0.00012692,2]
[355321790,1741065046175,-581.32,0.00012692,2]
[355321792,1741065046185,-500.0,0.00012692,2]
[355321794,1741065046194,-500.0,0.00012692,2]
[355321796,1741065046203,-500.0,0.00012692,2]
[355321798,1741065046213,-500.0,0.00012692,2]
[355321800,1741065046222,-500.0,0.00012692,2]
[355321802,1741065046231,-500.0,0.00012692,2]
[355321803,1741065046240,-1424.84,0.00012692,2]
[355321805,1741065046249,-500.0,0.00012692,2]
[355321807,1741065046259,-500.0,0.00012692,2]
[355321809,1741065046269,-1046.81,0.00012692,2]
[355321811,1741065046278,-500.0,0.00012692,2]